{"text_format":"3","workbook":"xlsx","n_sheets":1,"sheets":["Rozpočet neziskové organizace"],"not_rendered":{"charts":2,"images":1,"defined_names":1},"read":"whole","date_system":"1900"}

{"sheet":"Rozpočet neziskové organizace","index":0,"n_rows":40,"n_cols":7,"rows_kept":40,"merged":[[16,1,16,6],[21,1,21,5]]}
[null,"Rozpočet neziskové organizace",{"$nulls":3},"FINANČNÍ ROK",2012]
{"$rows_empty":7}
[null,null,{"$f":"CONCATENATE(\"FR  \",FR -1)","v":"FR  2011"},{"$f":"CONCATENATE(\"FR  \",FR )","v":"FR  2012"},{"$f":"CONCATENATE(\"FR  \",FR )","v":"FR  2012"},{"$f":"CONCATENATE(\"FR  \",FR )","v":"FR  2012"},{"$f":"CONCATENATE(\"FR  \",FR )","v":"FR  2012"}]
[null,"VÝNOSY","PŘEDCHOZÍ ROK","PLÁNOVANÉ","SKUTEČNÉ","ODCHYLKA","MEZIROČNÍ ROZDÍL"]
[null,"Fundraising a akce",{"v":150000,"d":"150000.00"},{"v":200000,"d":"200000.00"},{"v":180000,"d":"180000.00"},{"$f":"TabulkaVýnosů[[#This Row],[SKUTEČNÉ]]-TabulkaVýnosů[[#This Row],[PLÁNOVANÉ]]","v":{"v":-20000,"d":"-20000.00 "}},{"$f":"TabulkaVýnosů[[#This Row],[SKUTEČNÉ]]-TabulkaVýnosů[[#This Row],[PŘEDCHOZÍ ROK]]","v":{"v":30000,"d":"30000.00"}}]
[null,"Nadace",{"v":50000,"d":"50000.00"},{"v":50000,"d":"50000.00"},{"v":50000,"d":"50000.00"},{"$f":"TabulkaVýnosů[[#This Row],[SKUTEČNÉ]]-TabulkaVýnosů[[#This Row],[PLÁNOVANÉ]]","v":{"v":0,"d":"0.00"}},{"$f":"TabulkaVýnosů[[#This Row],[SKUTEČNÉ]]-TabulkaVýnosů[[#This Row],[PŘEDCHOZÍ ROK]]","v":{"v":0,"d":"0.00"}}]
[null,"Dary",{"v":30000,"d":"30000.00"},{"v":40000,"d":"40000.00"},{"v":20000,"d":"20000.00"},{"$f":"TabulkaVýnosů[[#This Row],[SKUTEČNÉ]]-TabulkaVýnosů[[#This Row],[PLÁNOVANÉ]]","v":{"v":-20000,"d":"-20000.00 "}},{"$f":"TabulkaVýnosů[[#This Row],[SKUTEČNÉ]]-TabulkaVýnosů[[#This Row],[PŘEDCHOZÍ ROK]]","v":{"v":-10000,"d":"-10000.00 "}}]
[null,"Příjmy z úroků",{"$nulls":3},{"$f":"TabulkaVýnosů[[#This Row],[SKUTEČNÉ]]-TabulkaVýnosů[[#This Row],[PLÁNOVANÉ]]","v":{"v":0,"d":"0.00"}},{"$f":"TabulkaVýnosů[[#This Row],[SKUTEČNÉ]]-TabulkaVýnosů[[#This Row],[PŘEDCHOZÍ ROK]]","v":{"v":0,"d":"0.00"}}]
[null,"Různé",{"$nulls":3},{"$f":"TabulkaVýnosů[[#This Row],[SKUTEČNÉ]]-TabulkaVýnosů[[#This Row],[PLÁNOVANÉ]]","v":{"v":0,"d":"0.00"}},{"$f":"TabulkaVýnosů[[#This Row],[SKUTEČNÉ]]-TabulkaVýnosů[[#This Row],[PŘEDCHOZÍ ROK]]","v":{"v":0,"d":"0.00"}}]
[null,"CELKEM",{"$f":"SUBTOTAL(109,TabulkaVýnosů[PŘEDCHOZÍ ROK])","v":{"v":230000,"d":"230,000.00 Kč"}},{"$f":"SUBTOTAL(109,TabulkaVýnosů[PLÁNOVANÉ])","v":{"v":290000,"d":"290,000.00 Kč"}},{"$f":"SUBTOTAL(109,TabulkaVýnosů[SKUTEČNÉ])","v":{"v":250000,"d":"250,000.00 Kč"}},{"$f":"SUBTOTAL(109,TabulkaVýnosů[ODCHYLKA])","v":{"v":-40000,"d":"-40,000.00 Kč"}},{"$f":"SUBTOTAL(105,TabulkaVýnosů[MEZIROČNÍ ROZDÍL])","v":{"v":-10000,"d":"-10,000.00 Kč"}}]
{"$rows_empty":8}
[null,null,{"$f":"CONCATENATE(\"FR  \",FR -1)","v":"FR  2011"},{"$f":"CONCATENATE(\"FR  \",FR )","v":"FR  2012"},{"$f":"CONCATENATE(\"FR  \",FR )","v":"FR  2012"},{"$f":"CONCATENATE(\"FR  \",FR )","v":"FR  2012"},{"$f":"CONCATENATE(\"FR  \",FR )","v":"FR  2012"}]
[null,"VÝDAJE","PŘEDCHOZÍ ROK","PLÁNOVANÉ","SKUTEČNÉ","ODCHYLKA","MEZIROČNÍ ROZDÍL"]
[null,"Platy",{"v":15000,"d":"15,000.00"},{"v":30000,"d":"30,000.00"},{"v":30000,"d":"30,000.00"},{"$f":"TabulkaVýdajů[[#This Row],[SKUTEČNÉ]]-TabulkaVýdajů[[#This Row],[PLÁNOVANÉ]]","v":{"v":0,"d":"0.00"}},{"$f":"TabulkaVýdajů[[#This Row],[SKUTEČNÉ]]-TabulkaVýdajů[[#This Row],[PŘEDCHOZÍ ROK]]","v":{"v":15000,"d":"15,000.00"}}]
[null,"Benefity",{"v":5000,"d":"5,000.00"},{"v":7500,"d":"7,500.00"},{"v":7800,"d":"7,800.00"},{"$f":"TabulkaVýdajů[[#This Row],[SKUTEČNÉ]]-TabulkaVýdajů[[#This Row],[PLÁNOVANÉ]]","v":{"v":300,"d":"300.00"}},{"$f":"TabulkaVýdajů[[#This Row],[SKUTEČNÉ]]-TabulkaVýdajů[[#This Row],[PŘEDCHOZÍ ROK]]","v":{"v":2800,"d":"2,800.00"}}]
[null,"Nájemné",{"v":6000,"d":"6,000.00"},{"v":6000,"d":"6,000.00"},{"v":6000,"d":"6,000.00"},{"$f":"TabulkaVýdajů[[#This Row],[SKUTEČNÉ]]-TabulkaVýdajů[[#This Row],[PLÁNOVANÉ]]","v":{"v":0,"d":"0.00"}},{"$f":"TabulkaVýdajů[[#This Row],[SKUTEČNÉ]]-TabulkaVýdajů[[#This Row],[PŘEDCHOZÍ ROK]]","v":{"v":0,"d":"0.00"}}]
[null,"Služby",{"v":1000,"d":"1,000.00"},{"v":1200,"d":"1,200.00"},{"v":1150,"d":"1,150.00"},{"$f":"TabulkaVýdajů[[#This Row],[SKUTEČNÉ]]-TabulkaVýdajů[[#This Row],[PLÁNOVANÉ]]","v":{"v":-50,"d":"-50.00 "}},{"$f":"TabulkaVýdajů[[#This Row],[SKUTEČNÉ]]-TabulkaVýdajů[[#This Row],[PŘEDCHOZÍ ROK]]","v":{"v":150,"d":"150.00"}}]
[null,"Cestování a schůzky",{"v":2500,"d":"2,500.00"},{"v":2000,"d":"2,000.00"},{"v":2800,"d":"2,800.00"},{"$f":"TabulkaVýdajů[[#This Row],[SKUTEČNÉ]]-TabulkaVýdajů[[#This Row],[PLÁNOVANÉ]]","v":{"v":800,"d":"800.00"}},{"$f":"TabulkaVýdajů[[#This Row],[SKUTEČNÉ]]-TabulkaVýdajů[[#This Row],[PŘEDCHOZÍ ROK]]","v":{"v":300,"d":"300.00"}}]
[null,"Honoráře",{"$nulls":3},{"$f":"TabulkaVýdajů[[#This Row],[SKUTEČNÉ]]-TabulkaVýdajů[[#This Row],[PLÁNOVANÉ]]","v":{"v":0,"d":"0.00"}},{"$f":"TabulkaVýdajů[[#This Row],[SKUTEČNÉ]]-TabulkaVýdajů[[#This Row],[PŘEDCHOZÍ ROK]]","v":{"v":0,"d":"0.00"}}]
[null,"Marketing/reklama",{"$nulls":3},{"$f":"TabulkaVýdajů[[#This Row],[SKUTEČNÉ]]-TabulkaVýdajů[[#This Row],[PLÁNOVANÉ]]","v":{"v":0,"d":"0.00"}},{"$f":"TabulkaVýdajů[[#This Row],[SKUTEČNÉ]]-TabulkaVýdajů[[#This Row],[PŘEDCHOZÍ ROK]]","v":{"v":0,"d":"0.00"}}]
[null,"Pojištění",{"$nulls":3},{"$f":"TabulkaVýdajů[[#This Row],[SKUTEČNÉ]]-TabulkaVýdajů[[#This Row],[PLÁNOVANÉ]]","v":{"v":0,"d":"0.00"}},{"$f":"TabulkaVýdajů[[#This Row],[SKUTEČNÉ]]-TabulkaVýdajů[[#This Row],[PŘEDCHOZÍ ROK]]","v":{"v":0,"d":"0.00"}}]
[null,"Telefon",{"$nulls":3},{"$f":"TabulkaVýdajů[[#This Row],[SKUTEČNÉ]]-TabulkaVýdajů[[#This Row],[PLÁNOVANÉ]]","v":{"v":0,"d":"0.00"}},{"$f":"TabulkaVýdajů[[#This Row],[SKUTEČNÉ]]-TabulkaVýdajů[[#This Row],[PŘEDCHOZÍ ROK]]","v":{"v":0,"d":"0.00"}}]
[null,"Poplatky spojené s webem (web, místo na schůzky apod.)",{"$nulls":3},{"$f":"TabulkaVýdajů[[#This Row],[SKUTEČNÉ]]-TabulkaVýdajů[[#This Row],[PLÁNOVANÉ]]","v":{"v":0,"d":"0.00"}},{"$f":"TabulkaVýdajů[[#This Row],[SKUTEČNÉ]]-TabulkaVýdajů[[#This Row],[PŘEDCHOZÍ ROK]]","v":{"v":0,"d":"0.00"}}]
[null,"Zařízení",{"$nulls":3},{"$f":"TabulkaVýdajů[[#This Row],[SKUTEČNÉ]]-TabulkaVýdajů[[#This Row],[PLÁNOVANÉ]]","v":{"v":0,"d":"0.00"}},{"$f":"TabulkaVýdajů[[#This Row],[SKUTEČNÉ]]-TabulkaVýdajů[[#This Row],[PŘEDCHOZÍ ROK]]","v":{"v":0,"d":"0.00"}}]
[null,"Potřeby",{"$nulls":3},{"$f":"TabulkaVýdajů[[#This Row],[SKUTEČNÉ]]-TabulkaVýdajů[[#This Row],[PLÁNOVANÉ]]","v":{"v":0,"d":"0.00"}},{"$f":"TabulkaVýdajů[[#This Row],[SKUTEČNÉ]]-TabulkaVýdajů[[#This Row],[PŘEDCHOZÍ ROK]]","v":{"v":0,"d":"0.00"}}]
[null,"Poštovné",{"$nulls":3},{"$f":"TabulkaVýdajů[[#This Row],[SKUTEČNÉ]]-TabulkaVýdajů[[#This Row],[PLÁNOVANÉ]]","v":{"v":0,"d":"0.00"}},{"$f":"TabulkaVýdajů[[#This Row],[SKUTEČNÉ]]-TabulkaVýdajů[[#This Row],[PŘEDCHOZÍ ROK]]","v":{"v":0,"d":"0.00"}}]
[null,"CELKEM",{"$f":"SUBTOTAL(109,TabulkaVýdajů[PŘEDCHOZÍ ROK])","v":{"v":29500,"d":"29,500.00 Kč"}},{"$f":"SUBTOTAL(109,TabulkaVýdajů[PLÁNOVANÉ])","v":{"v":46700,"d":"46,700.00 Kč"}},{"$f":"SUBTOTAL(109,TabulkaVýdajů[SKUTEČNÉ])","v":{"v":47750,"d":"47,750.00 Kč"}},{"$f":"SUBTOTAL(109,TabulkaVýdajů[ODCHYLKA])","v":{"v":1050,"d":"1,050.00 Kč"}},{"$f":"SUBTOTAL(109,TabulkaVýdajů[MEZIROČNÍ ROZDÍL])","v":{"v":18250,"d":"18,250.00 Kč"}}]